[Event "Blixt-SM 2021"]
[Site "Elite Hotel Marina Plaza, Kungstorget 6, Helsingborg, Sweden"]
[Date "2021.11.14"]
[Round "7.8"]
[White "Agovic, Seifo"]
[Black "Nimander, Max"]
[Result "1-0"]
[TimeControl "3 minutes + 2 seconds per move."]
[WhiteFideId "1702360"]
[BlackFideId "1746677"]
[WhiteElo "1910"]
[BlackElo "1917"]

1. e4 {[%clk 00:03:02]} d5 {[%clk 00:03:03]} {[%emt 00:00:02]} 2. exd5 {[%clk
00:03:02]} {[%emt 00:00:02]} Nf6 {[%clk 00:03:04]} 3. d4 {[%clk 00:03:02]}
{[%emt 00:00:02]} Bg4 {[%clk 00:03:05]} {[%emt 00:00:01]} 4. Be2 {[%clk
00:03:03]} {[%emt 00:00:02]} Bxe2 {[%clk 00:03:05]} {[%emt 00:00:01]} 5. Nxe2
{[%clk 00:03:04]} Qxd5 {[%clk 00:03:04]} {[%emt 00:00:04]} 6. O-O {[%clk
00:03:04]} {[%emt 00:00:03]} Nc6 {[%clk 00:03:04]} 7. Nbc3 {[%clk 00:03:03]}
{[%emt 00:00:03]} Qh5 {[%clk 00:03:03]} {[%emt 00:00:03]} 8. Nf4 {[%clk
00:03:01]} {[%emt 00:00:04]} Qxd1 {[%clk 00:03:02]} {[%emt 00:00:03]} 9. Rxd1
{[%clk 00:03:02]} O-O-O {[%clk 00:02:46]} {[%emt 00:00:18]} 10. d5 {[%clk
00:03:03]} {[%emt 00:00:01]} Ne5 {[%clk 00:02:46]} {[%emt 00:00:02]} 11. Nb5
{[%clk 00:02:59]} {[%emt 00:00:05]} a6 {[%clk 00:02:44]} {[%emt 00:00:05]} 12.
Na3 {[%clk 00:02:54]} {[%emt 00:00:08]} e6 {[%clk 00:02:38]} {[%emt 00:00:08]}
13. Re1 {[%clk 00:02:24]} {[%emt 00:00:31]} Bxa3 {[%clk 00:02:28]} {[%emt
00:00:12]} 14. bxa3 {[%clk 00:02:20]} {[%emt 00:00:06]} Ng6 {[%clk 00:01:58]}
{[%emt 00:00:33]} 15. Nxg6 {[%clk 00:02:14]} {[%emt 00:00:07]} hxg6 {[%clk
00:01:58]} {[%emt 00:00:02]} 16. dxe6 {[%clk 00:02:15]} Rhe8 {[%clk 00:01:40]}
{[%emt 00:00:20]} 17. Bg5 {[%clk 00:02:11]} {[%emt 00:00:06]} Rxe6 {[%clk
00:01:30]} {[%emt 00:00:13]} 18. Rxe6 {[%clk 00:02:11]} {[%emt 00:00:02]} fxe6
{[%clk 00:01:31]} 19. Re1 {[%clk 00:02:12]} {[%emt 00:00:01]} Rd6 {[%clk
00:01:26]} {[%emt 00:00:07]} 20. f3 {[%clk 00:02:04]} {[%emt 00:00:10]} Kd7
{[%clk 00:01:21]} {[%emt 00:00:07]} 21. c4 {[%clk 00:02:03]} {[%emt 00:00:03]}
Rd3 {[%clk 00:01:16]} {[%emt 00:00:07]} 22. Rb1 {[%clk 00:02:00]} {[%emt
00:00:05]} b6 {[%clk 00:01:10]} {[%emt 00:00:08]} 23. a4 {[%clk 00:01:50]}
{[%emt 00:00:12]} Ra3 {[%clk 00:01:05]} {[%emt 00:00:08]} 24. Rd1+ {[%clk
00:01:44]} {[%emt 00:00:08]} Kc6 {[%clk 00:01:01]} {[%emt 00:00:05]} 25. Rd2
{[%clk 00:01:27]} {[%emt 00:00:19]} Rxa4 {[%clk 00:01:01]} {[%emt 00:00:03]} 26.
Rc2 {[%clk 00:01:28]} Nd7 {[%clk 00:00:54]} {[%emt 00:00:09]} 27. Be7 {[%clk
00:01:18]} {[%emt 00:00:11]} Nc5 {[%clk 00:00:44]} {[%emt 00:00:12]} 28. Bf8
{[%clk 00:01:12]} {[%emt 00:00:08]} Nd3 {[%clk 00:00:38]} {[%emt 00:00:09]} 29.
a3 {[%clk 00:01:03]} {[%emt 00:00:11]} Ra5 {[%clk 00:00:29]} {[%emt 00:00:11]}
30. Rc3 {[%clk 00:01:01]} {[%emt 00:00:04]} Nc5 {[%clk 00:00:24]} {[%emt
00:00:07]} 31. Bxg7 {[%clk 00:01:00]} {[%emt 00:00:03]} Na4 {[%clk 00:00:25]}
32. Re3 {[%clk 00:00:59]} {[%emt 00:00:04]} Kd7 {[%clk 00:00:22]} {[%emt
00:00:05]} 33. Rd3+ {[%clk 00:00:46]} {[%emt 00:00:15]} Ke7 {[%clk 00:00:23]}
{[%emt 00:00:01]} 34. Ba1 {[%clk 00:00:44]} {[%emt 00:00:05]} Rc5 {[%clk
00:00:21]} {[%emt 00:00:03]} 35. Rd4 {[%clk 00:00:41]} {[%emt 00:00:06]} Rf5
{[%clk 00:00:13]} {[%emt 00:00:09]} 36. Kf2 {[%clk 00:00:41]} {[%emt 00:00:02]}
Nc5 {[%clk 00:00:14]} 37. Bc3 {[%clk 00:00:40]} {[%emt 00:00:03]} Nb3 {[%clk
00:00:15]} {[%emt 00:00:02]} 38. Rg4 {[%clk 00:00:38]} {[%emt 00:00:04]} Kf7
{[%clk 00:00:16]} {[%emt 00:00:02]} 39. h4 {[%clk 00:00:39]} Rc5 {[%clk
00:00:17]} {[%emt 00:00:02]} 40. Rf4+ {[%clk 00:00:39]} {[%emt 00:00:02]} Ke7
{[%clk 00:00:17]} {[%emt 00:00:02]} 41. Bg7 {[%clk 00:00:40]} Nc1 {[%clk
00:00:14]} {[%emt 00:00:06]} 42. Bf8+ {[%clk 00:00:41]} Kd7 {[%clk 00:00:15]}
{[%emt 00:00:02]} 43. Bxc5 {[%emt 00:00:02]} Nd3+ 44. Ke3 {[%clk 00:00:39]}
{[%emt 00:00:01]} Nxc5 {[%emt 00:00:02]} 45. Rf6 {[%clk 00:00:38]} {[%emt
00:00:02]} b5 {[%clk 00:00:13]} {[%emt 00:00:04]} 46. cxb5 {[%clk 00:00:39]}
axb5 {[%clk 00:00:15]} 47. Rxg6 {[%clk 00:00:40]} Ke7 {[%clk 00:00:16]} {[%emt
00:00:02]} 48. Rg7+ {[%clk 00:00:39]} {[%emt 00:00:03]} Kf6 {[%clk 00:00:17]}
49. Rxc7 {[%clk 00:00:40]} {[%emt 00:00:02]} Na4 {[%clk 00:00:16]} {[%emt
00:00:03]} 50. Rb7 {[%clk 00:00:38]} {[%emt 00:00:03]} Nc3 {[%clk 00:00:16]}
{[%emt 00:00:02]} 51. Kd3 {[%clk 00:00:39]} {[%emt 00:00:01]} Nd5 {[%clk
00:00:15]} {[%emt 00:00:02]} 52. Rxb5 {[%clk 00:00:38]} {[%emt 00:00:02]} Nf4+
{[%clk 00:00:17]} 53. Ke4 {[%clk 00:00:38]} {[%emt 00:00:02]} Nxg2 {[%emt
00:00:02]} 54. h5 {[%clk 00:00:39]} {[%emt 00:00:01]} Nh4 {[%clk 00:00:17]}
{[%emt 00:00:03]} 55. a4 {[%clk 00:00:39]} {[%emt 00:00:01]} Nf5 {[%clk
00:00:18]} {[%emt 00:00:01]} 56. Rxf5+ {[%clk 00:00:40]} {[%emt 00:00:02]}
exf5+ {[%clk 00:00:19]} 57. Kf4 {[%clk 00:00:41]} 1-0

[Event "Blixt-SM 2021"]
[Site "Elite Hotel Marina Plaza, Kungstorget 6, Helsingborg, Sweden"]
[Date "2021.11.14"]
[Round "9.6"]
[White "Wellevit, Tomas"]
[Black "Rosell, Tomas"]
[Result "1-0"]
[TimeControl "3 minutes + 2 seconds per move."]
[WhiteFideId "1731963"]
[BlackFideId "1707132"]
[WhiteElo "2113"]
[BlackElo "2070"]

1. e4 {[%clk 00:03:03]} {[%emt 00:07:50]} c5 {[%clk 00:03:03]} {[%emt
00:00:06]} 2. Nf3 {[%clk 00:03:03]} {[%emt 00:00:02]} d6 {[%clk 00:03:04]} 3.
d4 {[%clk 00:03:02]} {[%emt 00:00:02]} cxd4 {[%clk 00:03:06]} {[%emt 00:00:01]}
4. Nxd4 {[%clk 00:03:03]} Nf6 {[%clk 00:03:07]} 5. Nc3 {[%clk 00:03:05]} g6
{[%clk 00:03:08]} 6. Bg5 {[%clk 00:03:06]} Bg7 {[%clk 00:03:09]} 7. Qd2 {[%clk
00:03:07]} {[%emt 00:00:01]} Nc6 {[%clk 00:03:10]} 8. Nb3 {[%clk 00:03:04]}
{[%emt 00:00:05]} O-O {[%clk 00:03:11]} {[%emt 00:00:02]} 9. Bh6 {[%clk
00:03:05]} {[%emt 00:00:01]} Be6 {[%clk 00:02:56]} {[%emt 00:00:17]} 10. Bxg7
{[%clk 00:03:05]} {[%emt 00:00:02]} Kxg7 {[%clk 00:02:57]} {[%emt 00:00:01]} 11.
h4 {[%clk 00:03:04]} {[%emt 00:00:04]} Ne5 {[%clk 00:02:42]} {[%emt 00:00:16]}
12. O-O-O {[%clk 00:02:52]} {[%emt 00:00:14]} a5 {[%clk 00:02:16]} {[%emt
00:00:27]} 13. h5 {[%emt 00:00:39]} Nxh5 {[%clk 00:01:05]} {[%emt 00:00:38]} 14.
Be2 {[%clk 00:02:50]} {[%emt 00:00:03]} Nf6 {[%clk 00:00:43]} {[%emt 00:00:24]}
15. Qh6+ {[%clk 00:02:50]} {[%emt 00:00:02]} Kg8 {[%clk 00:00:45]} 16. f4
{[%clk 00:02:47]} {[%emt 00:00:04]} Neg4 {[%clk 00:00:15]} {[%emt 00:00:32]} 17.
Bxg4 {[%clk 00:02:46]} {[%emt 00:00:02]} Bxg4 {[%clk 00:00:17]} 18. e5 {[%emt
00:00:12]} Nh5 {[%clk 00:00:11]} {[%emt 00:00:04]} 19. Rd3 {[%clk 00:02:27]}
{[%emt 00:00:15]} a4 {[%clk 00:00:12]} 20. Nd4 {[%clk 00:02:27]} {[%emt
00:00:02]} a3 {[%clk 00:00:14]} {[%emt 00:00:01]} 21. b3 {[%clk 00:02:28]} Rc8
{[%clk 00:00:11]} {[%emt 00:00:05]} 22. Ne4 {[%clk 00:02:26]} {[%emt 00:00:04]}
f6 {[%clk 00:00:06]} {[%emt 00:00:06]} 23. exf6 {[%clk 00:02:22]} {[%emt
00:00:06]} exf6 {[%clk 00:00:08]} 24. f5 {[%clk 00:02:15]} {[%emt 00:00:09]}
Rf7 {[%clk 00:00:04]} {[%emt 00:00:06]} 25. fxg6 {[%clk 00:02:15]} {[%emt
00:00:02]} hxg6 {[%clk 00:00:05]} {[%emt 00:00:01]} 26. Qxg6+ {[%clk 00:02:06]}
{[%emt 00:00:11]} Rg7 {[%clk 00:00:07]} 27. Qh6 {[%clk 00:02:02]} {[%emt
00:00:06]} Qe7 {[%clk 00:00:08]} 28. Ng3 {[%clk 00:01:55]} {[%emt 00:00:09]}
Qe5 {[%clk 00:00:09]} {[%emt 00:00:02]} 29. Nxh5 {[%clk 00:01:51]} {[%emt
00:00:06]} Bxh5 {[%clk 00:00:11]} {[%emt 00:00:01]} 30. Rxh5 {[%clk 00:01:51]}
{[%emt 00:00:02]} Qe1+ {[%clk 00:00:12]} 31. Rd1 {[%clk 00:01:49]} {[%emt
00:00:04]} Qc3 {[%clk 00:00:11]} {[%emt 00:00:03]} 32. Qxf6 {[%clk 00:01:36]}
{[%emt 00:00:14]} Qb2+ {[%clk 00:00:11]} {[%emt 00:00:02]} 33. Kd2 {[%clk
00:01:38]} Rxg2+ {[%emt 00:00:03]} 34. Ke1 {[%clk 00:01:36]} {[%emt 00:00:02]}
Qc3+ {[%clk 00:00:14]} 35. Kf1 {[%clk 00:01:35]} {[%emt 00:00:03]} Rf8 {[%clk
00:00:15]} 36. Rh8# {[%clk 00:01:32]} {[%emt 00:00:05]} 1-0

[Event "Blixt-SM 2021"]
[Site "Elite Hotel Marina Plaza, Kungstorget 6, Helsingborg, Sweden"]
[Date "2021.11.14"]
[Round "11.5"]
[White "Tornberg, Carlos"]
[Black "Terochin, Piotr"]
[Result "1-0"]
[TimeControl "3 minutes + 2 seconds per move."]
[WhiteFideId "1733478"]
[BlackFideId "1113682"]
[WhiteElo "2053"]
[BlackElo "1779"]

1. e4 {[%clk 00:03:02]} {[%emt 00:00:02]} c5 {[%clk 00:03:04]} 2. c3 {[%clk
00:03:04]} Nf6 {[%emt 00:00:02]} 3. e5 Nd5 {[%clk 00:03:05]} 4. d4 {[%clk
00:03:06]} cxd4 {[%clk 00:03:05]} {[%emt 00:00:02]} 5. Nf3 {[%clk 00:03:08]}
{[%emt 00:00:01]} d6 {[%clk 00:03:04]} {[%emt 00:00:02]} 6. cxd4 {[%clk
00:03:09]} {[%emt 00:00:01]} Nc6 {[%clk 00:03:04]} {[%emt 00:00:02]} 7. Bc4
{[%clk 00:03:10]} Nb6 {[%clk 00:03:04]} {[%emt 00:00:02]} 8. Bb5 {[%clk
00:03:11]} Bd7 {[%clk 00:03:01]} {[%emt 00:00:05]} 9. exd6 {[%clk 00:03:09]}
{[%emt 00:00:04]} exd6 {[%clk 00:03:00]} {[%emt 00:00:02]} 10. O-O {[%clk
00:03:06]} {[%emt 00:00:05]} Be7 {[%emt 00:00:07]} 11. Nc3 {[%emt 00:00:01]}
O-O {[%clk 00:02:50]} {[%emt 00:00:03]} 12. a3 {[%clk 00:03:07]} {[%emt
00:00:02]} a6 {[%clk 00:02:32]} {[%emt 00:00:21]} 13. Bd3 {[%clk 00:03:08]} Bf6
{[%clk 00:02:08]} {[%emt 00:00:26]} 14. Bc2 {[%clk 00:03:05]} {[%emt 00:00:05]}
Rc8 {[%clk 00:01:52]} {[%emt 00:00:18]} 15. Bf4 {[%clk 00:02:26]} {[%emt
00:00:40]} Bg4 {[%clk 00:01:27]} {[%emt 00:00:27]} 16. Qd3 {[%clk 00:02:18]}
{[%emt 00:00:10]} g6 {[%clk 00:01:23]} {[%emt 00:00:07]} 17. d5 {[%clk
00:02:06]} {[%emt 00:00:13]} Bxf3 {[%clk 00:01:16]} {[%emt 00:00:09]} 18. dxc6
{[%clk 00:01:39]} {[%emt 00:00:29]} Bxc6 {[%clk 00:01:16]} {[%emt 00:00:01]} 19.
Bxd6 {[%clk 00:01:35]} {[%emt 00:00:07]} Re8 {[%clk 00:01:08]} {[%emt
00:00:10]} 20. Rad1 {[%clk 00:01:33]} {[%emt 00:00:04]} Bg7 {[%clk 00:01:03]}
{[%emt 00:00:07]} 21. Qg3 {[%clk 00:01:26]} {[%emt 00:00:09]} Qf6 {[%clk
00:00:59]} {[%emt 00:00:07]} 22. Bc5 {[%clk 00:01:06]} {[%emt 00:00:20]} Nc4
{[%clk 00:01:00]} {[%emt 00:00:04]} 23. Bd4 {[%clk 00:00:53]} {[%emt 00:00:14]}
Qe7 {[%clk 00:00:55]} {[%emt 00:00:07]} 24. Bxg7 {[%clk 00:00:50]} {[%emt
00:00:05]} Kxg7 {[%clk 00:00:56]} {[%emt 00:00:01]} 25. Rb1 {[%clk 00:00:40]}
{[%emt 00:00:12]} Qf6 {[%clk 00:00:50]} {[%emt 00:00:08]} 26. Rfd1 {[%clk
00:00:10]} {[%emt 00:00:32]} Rcd8 {[%clk 00:00:51]} {[%emt 00:00:01]} 27. Rxd8
{[%clk 00:00:08]} {[%emt 00:00:04]} Rxd8 {[%clk 00:00:53]} 28. h3 {[%clk
00:00:05]} {[%emt 00:00:05]} Rd2 {[%clk 00:00:49]} {[%emt 00:00:06]} 29. Ne4
{[%clk 00:00:05]} {[%emt 00:00:02]} Bxe4 30. Bxe4 {[%clk 00:00:06]} b5 {[%clk
00:00:36]} {[%emt 00:00:11]} 31. b4 {[%clk 00:00:07]} {[%emt 00:00:02]} Nxa3
{[%clk 00:00:37]} {[%emt 00:00:02]} 32. Qxa3 {[%clk 00:00:05]} {[%emt
00:00:04]} Qd4 {[%clk 00:00:38]} 33. Qe3 {[%clk 00:00:04]} {[%emt 00:00:03]}
Qd6 {[%clk 00:00:36]} {[%emt 00:00:04]} 34. Bf3 {[%clk 00:00:05]} {[%emt
00:00:01]} Rd4 {[%clk 00:00:34]} {[%emt 00:00:03]} 35. Qc3 {[%clk 00:00:06]}
Rc4 {[%clk 00:00:35]} {[%emt 00:00:01]} 1-0

[Event "Blixt-SM 2021"]
[Site "Elite Hotel Marina Plaza, Kungstorget 6, Helsingborg, Sweden"]
[Date "2021.11.14"]
[Round "13.3"]
[White "Storme, Isak"]
[Black "Wellevit, Tomas"]
[Result "1-0"]
[TimeControl "3 minutes + 2 seconds per move."]
[WhiteTitle "FM"]
[WhiteFideId "1728113"]
[BlackFideId "1731963"]
[WhiteElo "2037"]
[BlackElo "2113"]

1. d4 {[%clk 00:03:02]} {[%emt 00:00:01]} d5 {[%clk 00:03:04]} 2. Bf4 {[%clk
00:03:03]} {[%emt 00:00:02]} Nf6 {[%clk 00:03:04]} {[%emt 00:00:02]} 3. e3
{[%clk 00:03:03]} {[%emt 00:00:01]} e6 {[%clk 00:03:05]} {[%emt 00:00:02]} 4.
Nf3 {[%clk 00:03:03]} {[%emt 00:00:01]} Bd6 {[%clk 00:03:06]} {[%emt 00:00:01]}
5. Bd3 {[%clk 00:03:01]} {[%emt 00:00:04]} Bxf4 {[%clk 00:03:01]} {[%emt
00:00:07]} 6. exf4 {[%clk 00:03:01]} {[%emt 00:00:02]} Qd6 {[%clk 00:03:03]}
{[%emt 00:00:01]} 7. Qd2 {[%clk 00:02:53]} {[%emt 00:00:09]} O-O {[%clk
00:03:00]} {[%emt 00:00:05]} 8. O-O {[%clk 00:02:53]} {[%emt 00:00:03]} c5
{[%clk 00:03:01]} 9. dxc5 {[%clk 00:02:44]} {[%emt 00:00:10]} Qxc5 {[%clk
00:03:02]} {[%emt 00:00:01]} 10. c3 {[%clk 00:02:29]} {[%emt 00:00:17]} Nc6
{[%clk 00:03:03]} {[%emt 00:00:01]} 11. Na3 {[%clk 00:02:28]} {[%emt 00:00:03]}
a5 {[%clk 00:02:58]} {[%emt 00:00:08]} 12. Nc2 {[%clk 00:02:20]} {[%emt
00:00:10]} b6 {[%clk 00:02:59]} {[%emt 00:00:01]} 13. Ncd4 {[%clk 00:02:15]}
{[%emt 00:00:07]} Ba6 {[%clk 00:02:55]} {[%emt 00:00:07]} 14. Rfe1 {[%clk
00:02:11]} {[%emt 00:00:05]} Bxd3 {[%clk 00:02:55]} {[%emt 00:00:02]} 15. Qxd3
{[%clk 00:02:11]} {[%emt 00:00:01]} Ne4 {[%clk 00:02:54]} {[%emt 00:00:03]} 16.
Rad1 {[%clk 00:01:51]} {[%emt 00:00:23]} a4 {[%clk 00:02:47]} {[%emt 00:00:09]}
17. a3 {[%clk 00:01:47]} {[%emt 00:00:05]} Na5 {[%clk 00:02:43]} {[%emt
00:00:06]} 18. f5 {[%clk 00:01:41]} {[%emt 00:00:08]} exf5 {[%clk 00:02:25]}
{[%emt 00:00:21]} 19. Re2 {[%clk 00:01:23]} {[%emt 00:00:19]} g6 {[%clk
00:02:21]} {[%emt 00:00:05]} 20. Qe3 {[%clk 00:01:22]} {[%emt 00:00:04]} Nc4
{[%clk 00:02:19]} {[%emt 00:00:05]} 21. Qh6 {[%clk 00:01:21]} {[%emt 00:00:02]}
Rfe8 {[%clk 00:02:08]} {[%emt 00:00:14]} 22. Rxe4 {[%clk 00:00:52]} {[%emt
00:00:30]} dxe4 {[%clk 00:01:10]} {[%emt 00:01:00]} 23. Ng5 {[%clk 00:00:50]}
{[%emt 00:00:05]} Qc7 {[%clk 00:01:00]} {[%emt 00:00:13]} 24. Qxh7+ {[%clk
00:00:49]} {[%emt 00:00:02]} Kf8 {[%clk 00:01:01]} 25. Nde6+ {[%clk 00:00:45]}
{[%emt 00:00:07]} Rxe6 {[%clk 00:00:40]} {[%emt 00:00:23]} 26. Nxe6+ {[%clk
00:00:45]} {[%emt 00:00:01]} fxe6 {[%clk 00:00:42]} 27. Qxc7 {[%clk 00:00:45]}
{[%emt 00:00:02]} Nxb2 {[%clk 00:00:37]} {[%emt 00:00:07]} 28. Rd7 {[%clk
00:00:44]} {[%emt 00:00:02]} 1-0

[Event "Blixt-SM 2021"]
[Site "Elite Hotel Marina Plaza, Kungstorget 6, Helsingborg, Sweden"]
[Date "2021.11.14"]
[Round "2.6"]
[White "Khalat, Havras"]
[Black "Nilsson, Patrik"]
[Result "0-1"]
[TimeControl "3 minutes + 2 seconds per move."]
[WhiteFideId "1725017"]
[BlackFideId "1708171"]
[WhiteElo "1793"]
[BlackElo "2143"]

1. d4 {[%clk 00:03:02]} {[%emt 00:00:02]} f5 {[%clk 00:03:03]} {[%emt
00:00:02]} 2. Nf3 {[%clk 00:03:03]} Nf6 {[%clk 00:03:04]} {[%emt 00:00:01]} 3.
g3 {[%clk 00:03:04]} g6 {[%clk 00:03:05]} 4. Bg2 {[%clk 00:03:05]} Bg7 {[%clk
00:03:07]} {[%emt 00:00:01]} 5. O-O {[%clk 00:03:05]} {[%emt 00:00:02]} d6
{[%clk 00:03:08]} 6. c4 {[%clk 00:03:06]} O-O {[%clk 00:03:08]} {[%emt
00:00:01]} 7. Nc3 {[%clk 00:03:07]} {[%emt 00:00:01]} Qe8 {[%clk 00:03:09]} 8.
Re1 {[%clk 00:03:08]} {[%emt 00:00:01]} Qf7 {[%clk 00:03:10]} 9. e4 {[%clk
00:02:59]} {[%emt 00:00:12]} fxe4 {[%clk 00:03:10]} {[%emt 00:00:02]} 10. Nxe4
{[%clk 00:03:00]} {[%emt 00:00:02]} h6 {[%clk 00:03:08]} {[%emt 00:00:04]} 11.
Nxf6+ {[%clk 00:02:52]} {[%emt 00:00:09]} Qxf6 {[%clk 00:03:05]} {[%emt
00:00:05]} 12. Be3 {[%clk 00:02:43]} {[%emt 00:00:11]} Bg4 {[%clk 00:02:56]}
{[%emt 00:00:11]} 13. Qb3 {[%clk 00:02:03]} {[%emt 00:00:42]} Bxf3 {[%clk
00:02:53]} {[%emt 00:00:05]} 14. Bxf3 {[%clk 00:02:02]} {[%emt 00:00:03]} Qxf3
{[%clk 00:02:53]} {[%emt 00:00:02]} 15. d5 {[%clk 00:01:48]} {[%emt 00:00:17]}
b6 {[%clk 00:02:17]} {[%emt 00:00:38]} 16. Qc2 {[%clk 00:01:24]} {[%emt
00:00:25]} Qf5 {[%clk 00:02:16]} {[%emt 00:00:03]} 17. Qd2 {[%clk 00:01:06]}
{[%emt 00:00:20]} Nd7 {[%clk 00:02:13]} {[%emt 00:00:05]} 18. Bxh6 {[%clk
00:00:57]} {[%emt 00:00:11]} Ne5 {[%clk 00:02:02]} {[%emt 00:00:12]} 19. Bxg7
{[%clk 00:00:46]} {[%emt 00:00:13]} Nf3+ {[%clk 00:02:02]} {[%emt 00:00:02]}
0-1